[Event "1st SOA-GM Festival 2024"]
[Site "Bhubaneswar"]
[Date "2024.02.04"]
[Round "10.14"]
[White "Jaiveer Mahendru"]
[Black "Aakash Sharadchandra, Dalvi"]
[Result "1/2-1/2"]
[ECO "B90"]
[WhiteElo "2294"]
[BlackElo "2180"]
[Annotator "RC"]
[PlyCount "105"]
[EventDate "2024.02.01"]
[EventType "swiss"]
[EventCountry "IND"]
[SourceTitle "playchess.com"]
[Source "ChessBase"]
[SourceQuality "1"]
[TimeControl "5400+30"]

1. e4 {[%emt 0:00:01]} c5 {[%emt 0:01:56]} 2. Nf3 {[%emt 0:00:02]} d6 {[%emt 0:00:19]} 3. d4 {[%emt 0:00:03]} cxd4 {[%emt 0:00:05]} 4. Nxd4 {[%emt 0:00:03]} Nf6 {[%emt 0:00:07]} 5. Nc3 {[%emt 0:00:02]} a6 {[%emt 0:00:06]} 6. Be3 {[%emt 0:00:03]} e5 {[%emt 0:00:37]} 7. Nb3 {[%emt 0:00:09]} Be6 {[%emt 0:00:12]} 8. h3 {[%emt 0:00:05]} Nbd7 {[%emt 0:01:34]} 9. Qf3 {[%emt 0:02:11]} Rc8 {[%emt 0:00:50]} 10. g4 {[%emt 0:08:54]} h6 {[%emt 0:00:13]} 11. O-O-O {[%emt 0:00:15]} Be7 {[%emt 0:01:47]} 12. Nd5 {[%emt 0:00:11]} Bxd5 {[%emt 0:01:19]} 13. exd5 {[%emt 0:00:04]} Nb6 {[%emt 0:08:23]} 14. h4 {[%emt 0:00:59]} Qc7 {[%emt 0:02:59]} 15. c3 {[%emt 0:00:04]} e4 {[%emt 0:11:45]} 16. Qg3 {[%emt 0:07:28]} Nfxd5 {[%emt 0:03:19]} 17. Bd4 {[%emt 0:00:36]} Bf6 {[%emt 0:04:27]} 18. Bg2 {[%emt 0:01:25]} Be5 {[%emt 0:02:48]} 19. Bxe5 {[%emt 0:01:51]} dxe5 {[%emt 0:00:54]} 20. Bxe4 {[%emt 0:01:55]} Nf4 {[%emt 0:01:20]} 21. Qf3 {[%emt 0:13:24]} O-O {[%emt 0:00:35]} 22. Bc2 {[%emt 0:24:15]} Qc6 {[%emt 0:14:22]} 23. Qxc6 {[%emt 0:00:59]} Rxc6 {[%emt 0:00:06]} 24. Na5 {[%emt 0:03:36]} Rc7 {[%emt 0:01:18]} 25. Rhe1 {[%emt 0:02:04]} f6 {[%emt 0:01:57]} 26. Be4 {[%emt 0:02:20]} Rb8 {[%emt 0:00:56]} 27. Rd6 {[%emt 0:11:03]} Nd7 {[%emt 0:06:14]} 28. Bf5 {[%emt 0:04:46]} Nc5 {[%emt 0:02:07]} 29. Red1 {[%emt 0:05:53]} Kf8 {[%emt 0:05:53]} 30. Rd8+ {[%emt 0:02:35]} Rxd8 {[%emt 0:00:06]} 31. Rxd8+ {[%emt 0:00:04]} Ke7 {[%emt 0:00:27]} 32. Rg8 {[%emt 0:03:17]} Kf7 {[%emt 0:00:42]} 33. Rc8 {[%emt 0:02:35]} Rxc8 {[%emt 0:01:15]} 34. Bxc8 {[%emt 0:00:02]} b6 {[%emt 0:03:13]} 35. Nc4 {[%emt 0:01:02]} b5 {[%emt 0:06:39]} 36. Ne3 {[%emt 0:03:00]} Ke7 {[%emt 0:02:04]} 37. g5 {[%emt 0:01:07]} fxg5 {[%emt 0:00:34]} 38. hxg5 {[%emt 0:00:13]} h5 {[%emt 0:00:05]} 39. b4 {[%emt 0:00:39]} Kd8 {[%emt 0:01:38]} 40. Bf5 {[%emt 0:00:21]} Ncd3+ {[%emt 0:02:34]} 41. Bxd3 {[%emt 0:00:48]} Nxd3+ {[%emt 0:00:03]} 42. Kc2 {[%emt 0:00:32]} Nf4 {[%emt 0:05:09]} 43. Nf5 {[%emt 0:00:29]} g6 {[%emt 0:01:27]} 44. Nh4 {[%emt 0:00:01]} Ke7 {[%emt 0:00:42]} 45. c4 {[%emt 0:00:20]} bxc4 {[%emt 0:01:42]} 46. Kc3 {[%emt 0:00:07]} Kd6 {[%emt 0:01:45]} 47. Kxc4 {[%emt 0:00:13]} Nh3 {[%emt 0:00:30]} 48. Nxg6 {[%emt 0:00:16]} Nxg5 {[%emt 0:00:08]} 49. Nh4 {[%emt 0:01:14]} Kc6 {[%emt 0:02:11]} 50. a4 {[%emt 0:00:12]} Ne4 {[%emt 0:00:29]} 51. b5+ {[%emt 0:00:46]} axb5+ {[%emt 0:00:05]} 52. axb5+ {[%emt 0:00:06]} Kb6 {[%emt 0:00:52]} 53. Kd5 {[%emt 0:00:39]} 1/2-1/2

[Event "1st SOA-GM Festival 2024"]
[Site "Bhubaneswar"]
[Date "2024.02.04"]
[Round "10.15"]
[White "Gonzales, Jayson"]
[Black "Nilssen, Ellen Fredericia"]
[Result "1-0"]
[ECO "E04"]
[WhiteElo "2367"]
[BlackElo "2184"]
[Annotator "RC"]
[PlyCount "143"]
[EventDate "2024.02.01"]
[EventType "swiss"]
[EventCountry "IND"]
[SourceTitle "playchess.com"]
[Source "ChessBase"]
[SourceQuality "1"]
[TimeControl "5400+30"]

1. d4 {[%emt 0:00:17]} d5 {[%emt 0:00:07]} 2. Nf3 {[%emt 0:00:33]} e6 {[%emt 0:00:07]} 3. g3 {[%emt 0:00:16]} Nf6 {[%emt 0:00:25]} 4. Bg2 {[%emt 0:00:11]} c5 {[%emt 0:00:29]} 5. O-O {[%emt 0:01:12]} Nc6 {[%emt 0:00:08]} 6. c4 {[%emt 0:02:01]} dxc4 {[%emt 0:00:10]} 7. Qa4 {[%emt 0:01:21]} Bd7 {[%emt 0:02:42]} 8. dxc5 {[%emt 0:05:00]} Na5 {[%emt 0:15:35]} 9. Qc2 {[%emt 0:03:48]} Bxc5 {[%emt 0:00:37]} 10. Ne5 {[%emt 0:01:47]} Qc7 {[%emt 0:06:28]} 11. Bf4 {[%emt 0:01:14]} Bd6 {[%emt 0:05:29]} 12. Nxd7 {[%emt 0:01:25]} Nxd7 {[%emt 0:00:24]} 13. Bxd6 {[%emt 0:00:53]} Qxd6 {[%emt 0:00:02]} 14. Rd1 {[%emt 0:00:26]} Qc7 {[%emt 0:05:09]} 15. Rf1 {[%emt 1:17:36]} Qd6 {[%emt 0:00:00]} 16. Rd1 {[%emt 0:00:00]} Qc7 {[%emt 0:01:00]} 17. b4 {[%emt 0:00:00]} Nc6 {[%emt 0:03:10]} 18. Qxc4 {[%emt 0:00:00]} Rc8 {[%emt 0:01:00]} 19. Nc3 {[%emt 0:00:00]} Nb6 {[%emt 0:07:26]} 20. Qh4 {[%emt 0:00:00]} O-O {[%emt 0:07:29]} 21. Nb5 {[%emt 0:00:00]} Qb8 {[%emt 0:01:13]} 22. Nd6 {[%emt 0:00:00]} Rcd8 {[%emt 0:00:24]} 23. Nxb7 {[%emt 0:00:00]} Rxd1+ {[%emt 0:00:42]} 24. Rxd1 {[%emt 0:00:00]} Qxb7 {[%emt 0:00:08]} 25. b5 {[%emt 0:00:00]} Nd5 {[%emt 0:00:39]} 26. bxc6 {[%emt 0:05:30]} Qxc6 {[%emt 0:02:04]} 27. Bxd5 {[%emt 0:00:00]} exd5 {[%emt 0:00:02]} 28. Qd4 {[%emt 0:00:00]} Qc4 {[%emt 0:06:18]} 29. Rd2 {[%emt 0:00:00]} Rc8 {[%emt 0:09:08]} 30. Qxd5 {[%emt 0:00:00]} Qxd5 {[%emt 0:00:14]} 31. Rxd5 {[%emt 0:00:00]} Kf8 {[%emt 0:00:17]} 32. Ra5 {[%emt 0:00:00]} Rc7 {[%emt 0:00:01]} 33. Kg2 {[%emt 0:00:00]} Ke7 {[%emt 0:00:02]} 34. Kf3 {[%emt 0:00:00]} Kd6 {[%emt 0:00:14]} 35. Ke3 {[%emt 0:00:00]} Kc6 {[%emt 0:00:21]} 36. Kd2 {[%emt 0:00:00]} Kb6 {[%emt 0:00:54]} 37. Rd5 {[%emt 0:00:00]} Kc6 {[%emt 0:01:24]} 38. Rd3 {[%emt 0:00:00]} Rb7 {[%emt 0:01:20]} 39. Kc2 {[%emt 0:00:00]} Rb5 {[%emt 0:03:13]} 40. Rf3 {[%emt 0:00:00]} f6 {[%emt 0:00:18]} 41. Ra3 {[%emt 0:00:00]} Rb7 {[%emt 0:03:35]} 42. Rc3+ {[%emt 0:00:00]} Kd5 {[%emt 0:00:40]} 43. Rc8 {[%emt 0:00:00]} Re7 {[%emt 0:00:33]} 44. Rd8+ {[%emt 0:00:00]} Kc4 {[%emt 0:00:35]} 45. e3 {[%emt 0:00:00]} Kb4 {[%emt 0:00:51]} 46. Kb2 {[%emt 0:00:00]} Rb7 {[%emt 0:01:33]} 47. Rd4+ {[%emt 0:00:00]} Kb5 {[%emt 0:00:12]} 48. Kc3 {[%emt 0:00:00]} Kc6 {[%emt 0:01:36]} 49. Rc4+ {[%emt 0:00:00]} Kd5 {[%emt 0:00:18]} 50. e4+ {[%emt 0:00:00]} Kd6 {[%emt 0:00:21]} 51. f4 {[%emt 0:00:00]} Rb5 {[%emt 0:02:37]} 52. Rd4+ {[%emt 0:00:00]} Kc6 {[%emt 0:00:01]} 53. Rb4 {[%emt 0:00:00]} Ra5 {[%emt 0:00:13]} 54. Kb3 {[%emt 0:00:00]} g5 {[%emt 0:00:45]} 55. Rb8 {[%emt 0:02:04]} Kd6 {[%emt 0:05:29]} 56. Rd8+ {[%emt 0:01:37]} Ke6 {[%emt 0:01:23]} 57. Ra8 {[%emt 0:03:09]} Kd6 {[%emt 0:00:54]} 58. a4 {[%emt 0:00:36]} gxf4 {[%emt 0:00:59]} 59. gxf4 {[%emt 0:00:01]} Rh5 {[%emt 0:00:59]} 60. Rxa7 {[%emt 0:00:09]} Rxh2 {[%emt 0:00:09]} 61. Ra6+ {[%emt 0:04:21]} Kc5 {[%emt 0:00:07]} 62. Rxf6 {[%emt 0:00:23]} Rh3+ {[%emt 0:00:05]} 63. Kb2 {[%emt 0:00:23]} Rh2+ {[%emt 0:01:16]} 64. Kb3 {[%emt 0:01:43]} Rh3+ {[%emt 0:00:02]} 65. Kc2 {[%emt 0:00:23]} Ra3 {[%emt 0:00:08]} 66. e5 {[%emt 0:00:24]} Rxa4 {[%emt 0:04:15]} 67. Kd3 {[%emt 0:00:12]} h5 {[%emt 0:01:32]} 68. Ke3 {[%emt 0:00:15]} h4 {[%emt 0:00:33]} 69. Kf3 {[%emt 0:05:50]} Ra7 {[%emt 0:04:10]} 70. Rh6 {[%emt 0:00:00]} Kd5 {[%emt 0:00:18]} 71. Rxh4 {[%emt 0:00:00]} Ke6 {[%emt 0:00:05]} 72. Rh6+ {[%emt 0:00:00]} 1-0

[Event "1st SOA-GM Festival 2024"]
[Site "Bhubaneswar"]
[Date "2024.02.04"]
[Round "10.17"]
[White "Arpan Das"]
[Black "Roy Chowdhury, Saptarshi"]
[Result "0-1"]
[ECO "A55"]
[WhiteElo "2367"]
[BlackElo "2233"]
[Annotator "RC"]
[PlyCount "80"]
[EventDate "2024.02.01"]
[EventType "swiss"]
[EventCountry "IND"]
[SourceTitle "playchess.com"]
[Source "ChessBase"]
[SourceQuality "1"]
[TimeControl "5400+30"]

1. d4 {[%emt 0:03:47]} Nf6 {[%emt 0:02:06]} 2. c4 {[%emt 0:00:06]} d6 {[%emt 0:00:05]} 3. Nc3 {[%emt 0:00:10]} Nbd7 {[%emt 0:00:06]} 4. Nf3 {[%emt 0:00:25]} e5 {[%emt 0:00:05]} 5. g3 {[%emt 0:00:10]} Be7 {[%emt 0:00:13]} 6. Bg2 {[%emt 0:00:05]} O-O {[%emt 0:00:09]} 7. O-O {[%emt 0:00:04]} c6 {[%emt 0:00:03]} 8. e4 {[%emt 0:00:04]} Re8 {[%emt 0:01:10]} 9. h3 {[%emt 0:03:39]} Bf8 {[%emt 0:00:31]} 10. Be3 {[%emt 0:00:10]} Qc7 {[%emt 0:00:52]} 11. Rc1 {[%emt 0:00:34]} exd4 {[%emt 0:02:58]} 12. Nxd4 {[%emt 0:00:06]} Nc5 {[%emt 0:00:07]} 13. Qc2 {[%emt 0:00:10]} a5 {[%emt 0:00:08]} 14. b3 {[%emt 0:00:10]} g6 {[%emt 0:01:58]} 15. Rfe1 {[%emt 0:00:20]} Bd7 {[%emt 0:01:50]} 16. a3 {[%emt 0:00:08]} Rad8 {[%emt 0:01:08]} 17. Rcd1 {[%emt 0:03:33]} Bc8 {[%emt 0:01:04]} 18. Bg5 {[%emt 0:05:09]} Bg7 {[%emt 0:01:34]} 19. f4 {[%emt 0:07:13]} Rd7 {[%emt 0:02:55]} 20. f5 {[%emt 0:03:09]} h6 {[%emt 0:08:07]} 21. Bc1 {[%emt 0:01:49]} g5 {[%emt 0:01:21]} 22. Kh2 {[%emt 0:06:34]} Rde7 {[%emt 0:04:00]} 23. b4 {[%emt 0:02:36]} axb4 {[%emt 0:00:44]} 24. axb4 {[%emt 0:00:06]} Na6 {[%emt 0:01:08]} 25. Ba3 {[%emt 0:02:04]} Nd7 {[%emt 0:07:09]} 26. Ndb5 {[%emt 0:10:53]} cxb5 {[%emt 0:00:24]} 27. Nxb5 {[%emt 0:00:05]} Qb8 {[%emt 0:01:06]} 28. Nxd6 {[%emt 0:00:10]} Be5 {[%emt 0:02:00]} 29. c5 {[%emt 0:00:18]} Nc7 {[%emt 0:07:15]} 30. b5 {[%emt 0:02:00]} Nxb5 {[%emt 0:03:45]} 31. Nxb5 {[%emt 0:01:18]} Bxg3+ {[%emt 0:00:06]} 32. Kh1 {[%emt 0:00:30]} Bxe1 {[%emt 0:00:05]} 33. Rxe1 {[%emt 0:00:07]} Qg3 {[%emt 0:00:23]} 34. Qc1 {[%emt 0:13:22]} Ne5 {[%emt 0:02:20]} 35. Re3 {[%emt 0:00:08]} Qf4 {[%emt 0:03:55]} 36. Nc3 {[%emt 0:00:46]} Rd8 {[%emt 0:01:38]} 37. Qg1 {[%emt 0:08:27]} Nc4 {[%emt 0:32:54]} 38. Rf3 {[%emt 0:00:39]} Qh4 {[%emt 0:00:03]} 39. Bc1 {[%emt 0:02:17]} Ne5 {[%emt 0:00:06]} 40. Rf1 {[%emt 0:00:13]} Rd3 {[%emt 0:00:50]} 0-1

[Event "1st SOA-GM Festival 2024"]
[Site "Bhubaneswar"]
[Date "2024.02.04"]
[Round "10.18"]
[White "Dere Pushkar"]
[Black "Kumar, Gaurav"]
[Result "0-1"]
[ECO "C47"]
[WhiteElo "2191"]
[BlackElo "1995"]
[Annotator "RC"]
[PlyCount "94"]
[EventDate "2024.02.01"]
[EventType "swiss"]
[EventCountry "IND"]
[SourceTitle "playchess.com"]
[Source "ChessBase"]
[SourceQuality "1"]
[TimeControl "5400+30"]

1. e4 {[%emt 0:02:12]} e5 {[%emt 0:00:11]} 2. Nc3 {[%emt 0:00:31]} Nf6 {[%emt 0:00:55]} 3. Nf3 {[%emt 0:00:27]} Nc6 {[%emt 0:00:16]} 4. d4 {[%emt 0:00:14]} exd4 {[%emt 0:01:04]} 5. Nxd4 {[%emt 0:00:05]} Bb4 {[%emt 0:00:45]} 6. Nxc6 {[%emt 0:00:07]} bxc6 {[%emt 0:00:16]} 7. Bd3 {[%emt 0:00:04]} O-O {[%emt 0:15:12]} 8. O-O {[%emt 0:00:03]} d5 {[%emt 0:01:11]} 9. Bd2 {[%emt 0:00:07]} Bxc3 {[%emt 0:02:28]} 10. Bxc3 {[%emt 0:00:04]} Nxe4 {[%emt 0:00:31]} 11. Bxe4 {[%emt 0:00:05]} dxe4 {[%emt 0:00:05]} 12. Qe2 {[%emt 0:00:09]} Bf5 {[%emt 0:03:21]} 13. Qe3 {[%emt 0:01:08]} Qe7 {[%emt 1:10:45]} 14. Rad1 {[%emt 0:05:43]} Rfe8 {[%emt 0:00:00]} 15. Rd4 {[%emt 0:01:57]} a6 {[%emt 0:01:00]} 16. Re1 {[%emt 0:04:40]} Bg6 {[%emt 0:00:00]} 17. Rc4 {[%emt 0:04:10]} Qd6 {[%emt 0:00:00]} 18. Rd4 {[%emt 0:00:37]} Qe7 {[%emt 0:00:00]} 19. Rc4 {[%emt 0:00:23]} Qd6 {[%emt 0:00:00]} 20. Rd4 {[%emt 0:00:37]} Qe6 {[%emt 0:00:00]} 21. b3 {[%emt 0:01:54]} Qe7 {[%emt 0:00:00]} 22. Rc4 {[%emt 0:05:08]} Qd6 {[%emt 0:00:00]} 23. Bb4 {[%emt 0:01:45]} Qd7 {[%emt 0:00:00]} 24. Rd4 {[%emt 0:02:02]} Qf5 {[%emt 0:00:00]} 25. Red1 {[%emt 0:02:20]} Bh5 {[%emt 0:00:00]} 26. R1d2 {[%emt 0:01:02]} Bf3 {[%emt 0:00:00]} 27. Kf1 {[%emt 0:11:44]} c5 {[%emt 0:00:00]} 28. Rd5 {[%emt 0:12:18]} Bxg2+ {[%emt 0:00:00]} 29. Kg1 {[%emt 0:00:14]} Qe6 {[%emt 0:00:00]} 30. Bc3 {[%emt 0:43:40]} Bf3 {[%emt 0:00:00]} 31. Rg5 {[%emt 0:00:00]} Bg2 {[%emt 0:00:00]} 32. Rgd5 Bf3 {[%emt 0:00:00]} 33. Rg5 {[%emt 0:00:00]} f6 {[%emt 0:00:00]} 34. Rg3 {[%emt 0:00:00]} Qf5 {[%emt 0:00:00]} 35. Qh6 {[%emt 0:00:00]} g6 {[%emt 0:00:00]} 36. Ba5 {[%emt 0:00:00]} Re7 {[%emt 0:04:02]} 37. Bc3 {[%emt 0:00:00]} Rd7 {[%emt 0:01:44]} 38. Rh3 {[%emt 0:00:00]} Rad8 {[%emt 0:00:31]} 39. Kf1 {[%emt 0:00:00]} e3 {[%emt 0:03:38]} 40. Rd3 {[%emt 0:00:00]} Be2+ {[%emt 0:01:57]} 41. Kxe2 {[%emt 0:00:00]} Qxf2+ {[%emt 0:00:10]} 42. Kd1 {[%emt 0:00:00]} Qf1+ {[%emt 0:00:47]} 43. Be1 {[%emt 0:00:00]} Rxd3+ {[%emt 0:00:06]} 44. cxd3 {[%emt 0:00:00]} Rxd3+ {[%emt 0:00:32]} 45. Kc1 {[%emt 0:00:00]} Qxe1+ {[%emt 0:00:08]} 46. Kb2 {[%emt 0:00:00]} Qc3+ {[%emt 0:00:13]} 47. Ka3 {[%emt 0:00:00]} Qa5+ {[%emt 0:00:28]} 0-1

[Event "1st SOA-GM Festival 2024"]
[Site "Bhubaneswar"]
[Date "2024.02.04"]
[Round "10.19"]
[White "Mohota, Nisha"]
[Black "Daaevik Wadhawan"]
[Result "1/2-1/2"]
[ECO "E90"]
[WhiteElo "2136"]
[BlackElo "1997"]
[Annotator "RC"]
[PlyCount "119"]
[EventDate "2024.02.01"]
[EventType "swiss"]
[EventCountry "IND"]
[SourceTitle "playchess.com"]
[Source "ChessBase"]
[SourceQuality "1"]
[TimeControl "5400+30"]

1. d4 {[%emt 0:00:24]} Nf6 {[%emt 0:00:35]} 2. c4 {[%emt 0:00:04]} g6 {[%emt 0:00:07]} 3. Nc3 {[%emt 0:00:07]} Bg7 {[%emt 0:00:04]} 4. e4 {[%emt 0:01:32]} d6 {[%emt 0:00:25]} 5. Nf3 {[%emt 0:00:19]} O-O {[%emt 0:00:51]} 6. Be2 {[%emt 0:00:02]} c5 {[%emt 0:02:48]} 7. d5 {[%emt 0:01:39]} e6 {[%emt 0:07:42]} 8. h3 {[%emt 0:00:37]} exd5 {[%emt 0:05:23]} 9. exd5 {[%emt 0:00:03]} Bf5 {[%emt 0:04:13]} 10. Qb3 {[%emt 0:17:14]} Na6 {[%emt 0:11:16]} 11. g4 {[%emt 0:04:04]} Be4 {[%emt 0:09:15]} 12. Be3 {[%emt 0:07:44]} Bf5 {[%emt 0:00:00]} 13. Bc1 {[%emt 0:00:00]} Be4 {[%emt 0:01:00]} 14. Be3 {[%emt 0:01:00]} Re8 {[%emt 0:07:13]} 15. Nxe4 {[%emt 0:04:14]} Nxe4 {[%emt 0:01:38]} 16. a3 {[%emt 0:10:18]} Qb6 {[%emt 0:05:47]} 17. Qxb6 {[%emt 0:01:16]} axb6 {[%emt 0:00:02]} 18. Rb1 {[%emt 0:00:58]} Nc7 {[%emt 0:04:58]} 19. Bd3 {[%emt 0:15:25]} b5 {[%emt 0:06:10]} 20. Bxe4 {[%emt 0:02:01]} Rxe4 {[%emt 0:00:12]} 21. Nd2 {[%emt 0:00:03]} Ree8 {[%emt 0:31:21]} 22. O-O {[%emt 0:14:31]} bxc4 {[%emt 0:00:00]} 23. Nxc4 {[%emt 0:00:33]} Ra6 {[%emt 0:00:00]} 24. a4 {[%emt 0:07:55]} Nxd5 {[%emt 0:00:00]} 25. Rbd1 {[%emt 0:00:00]} Nc7 {[%emt 0:00:00]} 26. Rb1 Nd5 {[%emt 0:00:00]} 27. Rbd1 {[%emt 0:05:35]} Nxe3 {[%emt 0:00:00]} 28. fxe3 {[%emt 0:00:03]} Rd8 {[%emt 0:00:00]} 29. b3 {[%emt 0:02:09]} d5 {[%emt 0:00:00]} 30. Rd3 {[%emt 0:01:11]} Re6 {[%emt 0:00:00]} 31. Rfd1 {[%emt 0:00:05]} d4 {[%emt 0:00:00]} 32. exd4 {[%emt 0:00:12]} Bxd4+ {[%emt 0:00:00]} 33. Kh1 {[%emt 0:00:02]} Rde8 {[%emt 0:00:00]} 34. R3d2 {[%emt 0:00:58]} Kg7 {[%emt 0:00:00]} 35. Kg2 {[%emt 0:00:27]} f5 {[%emt 0:00:00]} 36. g5 {[%emt 0:02:21]} h6 {[%emt 0:00:37]} 37. gxh6+ {[%emt 0:01:51]} Kxh6 {[%emt 0:00:06]} 38. Kf3 {[%emt 0:00:51]} Re1 {[%emt 0:01:47]} 39. b4 {[%emt 0:01:02]} Bc3 {[%emt 0:02:32]} 40. Rxe1 {[%emt 0:00:03]} Rxe1 {[%emt 0:00:05]} 41. Rd7 {[%emt 0:00:03]} cxb4 {[%emt 0:02:34]} 42. Rxb7 {[%emt 0:00:02]} Ra1 {[%emt 0:00:00]} 43. Rd7 Re1 44. Rb7 {[%emt 0:01:00]} Ra1 {[%emt 0:00:00]} 45. Rd7 Re1 46. Rb7 {[%emt 0:01:00]} Ra1 {[%emt 0:00:00]} 47. a5 {[%emt 0:01:52]} Ra4 {[%emt 0:03:03]} 48. Ke3 {[%emt 0:00:39]} Kg5 {[%emt 0:00:09]} 49. Kd3 {[%emt 0:00:20]} Kf4 {[%emt 0:01:12]} 50. h4 {[%emt 0:00:55]} Ra1 {[%emt 0:01:38]} 51. Rb6 {[%emt 0:00:21]} g5 {[%emt 0:00:02]} 52. hxg5 {[%emt 0:00:41]} Kxg5 {[%emt 0:00:02]} 53. a6 {[%emt 0:00:19]} Kg4 {[%emt 0:01:24]} 54. Ne3+ {[%emt 0:00:17]} Kg5 {[%emt 0:00:28]} 55. Rb5 {[%emt 0:00:20]} Rxa6 {[%emt 0:00:13]} 56. Rxf5+ {[%emt 0:00:29]} Kg6 {[%emt 0:00:03]} 57. Rb5 {[%emt 0:00:11]} Rd6+ {[%emt 0:00:26]} 58. Nd5 {[%emt 0:00:26]} Be1 {[%emt 0:00:46]} 59. Kc4 {[%emt 0:00:27]} Rc6+ {[%emt 0:00:03]} 60. Kb3 {[%emt 0:00:15]} 1/2-1/2

[Event "1st SOA-GM Festival 2024"]
[Site "Bhubaneswar"]
[Date "2024.02.04"]
[Round "10.20"]
[White "Roneet Das"]
[Black "Fedorov, Alexei"]
[Result "0-1"]
[ECO "A45"]
[WhiteElo "2018"]
[BlackElo "2443"]
[Annotator "RC"]
[PlyCount "66"]
[EventDate "2024.02.01"]
[EventType "swiss"]
[EventCountry "IND"]
[SourceTitle "playchess.com"]
[Source "ChessBase"]
[SourceQuality "1"]
[TimeControl "5400+30"]

1. d4 {[%emt 0:00:28]} Nf6 {[%emt 0:00:15]} 2. Bf4 {[%emt 0:00:15]} g6 {[%emt 0:00:44]} 3. Nc3 {[%emt 0:00:10]} d5 {[%emt 0:00:29]} 4. e3 {[%emt 0:00:34]} Bg7 {[%emt 0:01:03]} 5. h4 {[%emt 0:00:18]} c6 {[%emt 0:04:36]} 6. Be2 {[%emt 0:01:55]} h5 {[%emt 0:00:48]} 7. f3 {[%emt 0:05:05]} b5 {[%emt 0:03:16]} 8. Nh3 {[%emt 0:03:19]} Bxh3 {[%emt 0:00:27]} 9. Rxh3 {[%emt 0:00:21]} Nbd7 {[%emt 0:00:18]} 10. Qd2 {[%emt 0:01:32]} O-O {[%emt 0:02:01]} 11. O-O-O {[%emt 0:00:46]} b4 {[%emt 0:02:27]} 12. Nb1 {[%emt 0:04:44]} Qb6 {[%emt 0:00:59]} 13. Qd3 {[%emt 0:02:26]} a5 {[%emt 0:02:16]} 14. e4 {[%emt 1:15:37]} dxe4 {[%emt 0:08:53]} 15. fxe4 {[%emt 0:00:00]} c5 {[%emt 0:00:11]} 16. d5 {[%emt 0:00:00]} Ng4 {[%emt 0:03:24]} 17. Rf1 {[%emt 0:00:00]} c4 {[%emt 0:08:02]} 18. Qxc4 {[%emt 0:00:00]} Rfc8 {[%emt 0:01:13]} 19. Qb5 {[%emt 0:00:00]} Qd4 {[%emt 0:04:21]} 20. c3 {[%emt 0:00:00]} Nde5 {[%emt 0:04:35]} 21. Bxg4 {[%emt 0:00:00]} hxg4 {[%emt 0:02:16]} 22. Re3 {[%emt 0:00:00]} bxc3 {[%emt 0:03:58]} 23. bxc3 {[%emt 0:00:00]} Qa7 {[%emt 0:00:52]} 24. Nd2 {[%emt 0:00:00]} Rab8 {[%emt 0:00:44]} 25. Qe2 {[%emt 0:00:00]} Qd4 {[%emt 0:09:59]} 26. Nb1 {[%emt 0:00:00]} Rb7 {[%emt 0:00:00]} 27. Nd2 {[%emt 0:00:00]} Qa7 {[%emt 0:00:00]} 28. Nb1 {[%emt 0:00:00]} Qd4 29. Rd1 {[%emt 0:00:00]} Qc5 {[%emt 0:11:06]} 30. Qf2 {[%emt 0:00:00]} Rcb8 {[%emt 0:02:11]} 31. Qc2 {[%emt 0:00:00]} Nc4 {[%emt 0:03:31]} 32. Re2 {[%emt 0:00:00]} Rxb1+ {[%emt 0:00:13]} 33. Qxb1 {[%emt 0:00:00]} Qa3+ {[%emt 0:00:12]} 0-1